fUSD/lending_fUSD_20241203
["ID","MTS","AMOUNT","RATE_DAILY","PERIOD"]
[344018004,1733207719165,-652.59,0.00025273,120]
[344018005,1733207719209,-7472.01,0.00025273,120]
[344018006,1733207719252,-531.75,0.00025273,120]
[344018007,1733207719299,-1602.28,0.00025273,120]
[344018008,1733207719340,-500.0,0.00025273,120]
[344018009,1733207719381,-500.0,0.00025273,120]
[344018010,1733207719425,-898.04,0.00025273,120]
[344018011,1733207719469,-500.0,0.00025273,120]
[344018012,1733207719511,-1684.48,0.00025273,120]
[344018013,1733207719555,-23313.24,0.00025273,120]
[344018014,1733207719596,-500.0,0.00025273,120]
[344018015,1733207719641,-730.93,0.00025273,120]
[344018016,1733207719682,-1589.98,0.00025273,120]
[344018017,1733207719725,-500.0,0.00025273,120]
[344018018,1733207719767,-603.33,0.00025273,120]
[344018019,1733207719809,-990.38,0.00025273,120]
[344018020,1733207719850,-500.0,0.00025273,120]
[344018021,1733207719896,-1792.54,0.00025273,120]
[344018022,1733207719939,-924.55,0.00025273,120]
[344018023,1733207719981,-518.24,0.00025273,120]
[344018024,1733207720024,-1150.4,0.00025273,120]
[344018025,1733207720068,-2179.7,0.00025273,120]
[344018026,1733207720110,-500.0,0.00025273,120]
[344018027,1733207720152,-500.0,0.00025273,120]
[344018028,1733207720194,-1346.96,0.00025273,120]
[344018029,1733207720237,-500.0,0.00025273,120]
[344018030,1733207720279,-1299.93,0.00025273,120]
[344018031,1733207720325,-625.08,0.00025273,120]
[344018032,1733207720367,-3649.31,0.00025273,120]
[344018033,1733207720410,-500.0,0.00025273,120]
[344018034,1733207720453,-1057.59,0.00025273,120]
[344018035,1733207720496,-2581.1,0.00025273,120]
[344018036,1733207720539,-2020.87,0.00025273,120]
[344018037,1733207720584,-500.0,0.00025273,120]
[344018038,1733207720627,-598.80961628,0.00025273,120]
[344018039,1733207720668,-1115.63,0.00025273,120]
[344018040,1733207720710,-300.0,0.00025273,120]
[344018041,1733207720751,-2116.72,0.00025273,120]
[344018042,1733207720795,-500.0,0.00025273,120]
[344018043,1733207720836,-500.0,0.00025273,120]
[344018044,1733207720875,-500.0,0.00025273,120]
[344018045,1733207720916,-1115.82,0.00025273,120]
[344018046,1733207720956,-1049.62,0.00025273,120]
[344018047,1733207720999,-500.0,0.00025273,120]
[344018048,1733207721043,-4839.0,0.00025273,120]
[344018049,1733207721087,-500.0,0.00025273,120]
[344018050,1733207721128,-6092.58,0.00025273,120]
[344018051,1733207721170,-500.0,0.00025273,120]
[344018052,1733207721209,-500.0,0.00025273,120]
[344018053,1733207721251,-2162.2,0.00025273,120]
[344018054,1733207721294,-500.0,0.00025273,120]
[344018055,1733207721335,-500.0,0.00025273,120]
[344018056,1733207721374,-1160.96,0.00025273,120]
[344018057,1733207721412,-3074.11,0.00025273,120]
[344018058,1733207721451,-500.0,0.00025273,120]
[344018059,1733207721490,-500.0,0.00025273,120]
[344018060,1733207721529,-633.62,0.00025273,120]
[344018061,1733207721572,-500.0,0.00025273,120]
[344018062,1733207721613,-500.0,0.00025273,120]
[344018063,1733207721655,-590.83,0.00025273,120]
[344018064,1733207721695,-500.0,0.00025273,120]
[344018065,1733207721735,-3776.39,0.00025273,120]
[344018066,1733207721773,-500.0,0.00025273,120]
[344018067,1733207721812,-1221.71,0.00025273,120]
[344018068,1733207721853,-500.0,0.00025273,120]
[344018069,1733207721891,-1104.91,0.00025273,120]
[344018070,1733207721930,-2552.76,0.00025273,120]
[344018071,1733207721970,-500.0,0.00025273,120]
[344018072,1733207722014,-1541.64,0.00025273,120]
[344018073,1733207722057,-2129.67,0.00025273,120]
[344018074,1733207722100,-1764.28,0.00025273,120]
[344018075,1733207722142,-465.72794502,0.00025273,120]
[344018076,1733207722184,-877.7,0.00025273,120]
[344018077,1733207722225,-500.0,0.00025273,120]
[344018078,1733207722268,-1592.39,0.00025273,120]
[344018079,1733207722311,-13105.26,0.00025273,120]
[344018080,1733207722354,-500.0,0.00025273,120]
[344018081,1733207722397,-687.3,0.00025273,120]
[344018082,1733207722438,-500.0,0.00025273,120]
[344018083,1733207722480,-500.0,0.00025273,120]
[344018084,1733207722522,-5241.16,0.00025273,120]
[344018085,1733207722566,-500.0,0.00025273,120]
[344018086,1733207722611,-1415.18,0.00025273,120]
[344018087,1733207722654,-500.0,0.00025273,120]
[344018088,1733207722696,-500.0,0.00025273,120]
[344018089,1733207722738,-4139.93,0.00025273,120]
[344018090,1733207722780,-6928.41,0.00025273,120]
[344018091,1733207722824,-919.41,0.00025273,120]
[344018092,1733207722866,-666.63,0.00025273,120]
[344018093,1733207722910,-500.0,0.00025273,120]
[344018094,1733207722953,-3125.86,0.00025273,120]
[344018095,1733207722997,-5046.38,0.00025273,120]
[344018096,1733207723042,-773.76,0.00025273,120]
[344018097,1733207723090,-2347.94,0.00025273,120]
[344018098,1733207723390,-1956.62,0.00025273,120]
[344018099,1733207723439,-500.0,0.00025273,120]
[344018100,1733207723481,-5027.77,0.00025273,120]
[344018101,1733207723524,-968.89,0.00025273,120]
[344018102,1733207723568,-730.98,0.00025273,120]
[344018103,1733207723621,-2311.61,0.00025273,120]
[344018104,1733207723664,-500.0,0.00025273,120]
[344018105,1733207723707,-2705.9,0.00025273,120]
[344018106,1733207723750,-1657.59,0.00025273,120]
[344018107,1733207723793,-1154.24,0.00025273,120]
[344018108,1733207723836,-638.04,0.00025273,120]
[344018109,1733207723880,-2154.24,0.00025273,120]
[344018110,1733207723923,-1477.05,0.00025273,120]
[344018111,1733207723967,-1204.64,0.00025273,120]
[344018112,1733207724010,-2653.74,0.00025273,120]
[344018113,1733207724054,-1504.41,0.00025273,120]
[344018114,1733207724098,-1199.48,0.00025273,120]
[344018115,1733207724142,-500.0,0.00025273,120]
[344018116,1733207724187,-694.79,0.00025273,120]
[344018117,1733207724230,-3674.86,0.00025273,120]
[344018118,1733207724274,-706.2,0.00025273,120]
[344018119,1733207724318,-500.0,0.00025273,120]
[344018120,1733207724361,-652.21,0.00025273,120]
[344018121,1733207724404,-3686.87,0.00025273,120]
[344018122,1733207724447,-500.0,0.00025273,120]
[344018123,1733207724490,-500.0,0.00025273,120]
[344018124,1733207724532,-1629.05,0.00025273,120]
[344018125,1733207724575,-500.0,0.00025273,120]
[344018126,1733207724619,-540.12,0.00025273,120]
[344018127,1733207724661,-1222.03,0.00025273,120]
[344018128,1733207724705,-500.0,0.00025273,120]
[344018129,1733207724754,-1560.28,0.00025273,120]
[344018130,1733207724799,-500.0,0.00025273,120]
[344018131,1733207724841,-500.0,0.00025273,120]
[344018132,1733207724885,-1081.68,0.00025273,120]
[344018133,1733207724929,-500.0,0.00025273,120]
[344018134,1733207724975,-500.0,0.00025273,120]
[344018135,1733207725023,-1483.08,0.00025273,120]
[344018136,1733207725073,-500.0,0.00025273,120]
[344018137,1733207725126,-500.0,0.00025273,120]
[344018138,1733207725176,-1347.55,0.00025273,120]
[344018139,1733207725225,-500.0,0.00025273,120]
[344018140,1733207725273,-769.01,0.00025273,120]
[344018141,1733207725321,-500.0,0.00025273,120]
[344018142,1733207725368,-16169.68,0.00025273,120]
[344018143,1733207725413,-500.0,0.00025273,120]
[344018144,1733207725459,-13752.05,0.00025273,120]
[344018145,1733207725508,-1559.7,0.00025273,120]
[344018146,1733207725558,-6588.13,0.00025273,120]
[344018147,1733207725606,-1230.84,0.00025273,120]
[344018148,1733207725654,-500.0,0.00025273,120]
[344018149,1733207725699,-691.12,0.00025273,120]
[344018150,1733207725742,-500.0,0.00025273,120]
[344018151,1733207725786,-500.0,0.00025273,120]
[344018152,1733207725831,-500.0,0.00025273,120]
[344018153,1733207725875,-500.0,0.00025273,120]
[344018154,1733207725919,-2192.0,0.00025273,120]
[344018155,1733207725963,-1155.84,0.00025273,120]
[344018156,1733207726023,-500.0,0.00025273,120]
[344018157,1733207726070,-989.91,0.00025273,120]
[344018158,1733207726115,-500.0,0.00025273,120]
[344018159,1733207726161,-2492.14,0.00025273,120]
[344018160,1733207726207,-579.1,0.00025273,120]
[344018161,1733207726255,-2426.64,0.00025273,120]
[344018162,1733207726301,-1019.59,0.00025273,120]
[344018163,1733207726343,-500.0,0.00025273,120]
[344018164,1733207726388,-668.19,0.00025273,120]
[344018165,1733207726431,-500.0,0.00025273,120]
[344018166,1733207726472,-1685.91,0.00025273,120]
[344018167,1733207726515,-1015.28,0.00025273,120]
[344018168,1733207726559,-7446.32,0.00025273,120]
[344018169,1733207726604,-3524.31,0.00025273,120]
[344018170,1733207726651,-847.77,0.00025273,120]
[344018171,1733207726694,-500.0,0.00025273,120]
[344018172,1733207726739,-500.0,0.00025273,120]
[344018173,1733207726782,-608.07,0.00025273,120]
[344018174,1733207726826,-500.0,0.00025273,120]
[344018175,1733207726874,-1851.23,0.00025273,120]
[344018176,1733207726917,-508.48516981,0.00025273,120]
[344018177,1733207726958,-500.0,0.00025273,120]
[344018178,1733207727008,-2339.64,0.00025273,120]
[344018179,1733207727056,-930.4,0.00025273,120]
[344018180,1733207727103,-333.6158716,0.00025273,120]
[344018181,1733207727150,-2293.63,0.00025273,120]
[344018182,1733207727199,-1399.09,0.00025273,120]
[344018183,1733207727247,-500.0,0.00025273,120]
[344018184,1733207727294,-1540.02,0.00025273,120]
[344018185,1733207727342,-4529.13,0.00025273,120]
[344018186,1733207727387,-1162.03,0.00025273,120]
[344018187,1733207727432,-500.0,0.00025273,120]
[344018188,1733207727479,-3925.43,0.00025273,120]
[344018189,1733207727525,-500.0,0.00025273,120]
[344018190,1733207727569,-500.0,0.00025273,120]
[344018191,1733207727616,-500.0,0.00025273,120]
[344018192,1733207728047,-1128.01,0.00025273,120]
[344018193,1733207728093,-3003.71,0.00025273,120]
[344018194,1733207728141,-500.0,0.00025273,120]
[344018195,1733207728186,-500.0,0.00025273,120]
[344018196,1733207728230,-500.0,0.00025273,120]
[344018197,1733207728274,-3678.91,0.00025273,120]
[344018198,1733207728320,-694.88,0.00025273,120]
[344018199,1733207728368,-955.58,0.00025273,120]
[344018200,1733207728414,-2022.5,0.00025273,120]
[344018201,1733207728457,-2530.91,0.00025273,120]
[344018202,1733207728502,-980.03,0.00025273,120]
[344018203,1733207728544,-500.0,0.00025273,120]
[344018204,1733207728589,-500.0,0.00025273,120]
[344018205,1733207728633,-1166.54,0.00025273,120]
[344018206,1733207728676,-1609.37,0.00025273,120]
[344018207,1733207728721,-500.0,0.00025273,120]
[344018208,1733207728778,-3903.06,0.00025273,120]
[344018209,1733207728823,-713.61,0.00025273,120]
[344018210,1733207728864,-1094.44,0.00025273,120]
[344018211,1733207728905,-500.0,0.00025273,120]
[344018212,1733207728946,-500.0,0.00025273,120]
[344018213,1733207728988,-500.0,0.00025273,120]
[344018214,1733207729031,-890.94,0.00025273,120]
[344018215,1733207729076,-500.0,0.00025273,120]
[344018216,1733207729121,-528.06,0.00025273,120]
[344018217,1733207729164,-500.0,0.00025273,120]
[344018218,1733207729207,-2218.1,0.00025273,120]
[344018219,1733207729250,-500.0,0.00025273,120]
[344018220,1733207729293,-3990.07,0.00025273,120]
[344018221,1733207729343,-500.0,0.00025273,120]
[344018222,1733207729387,-500.0,0.00025273,120]
[344018223,1733207729431,-500.0,0.00025273,120]
[344018224,1733207729475,-1750.91,0.00025273,120]
[344018225,1733207729520,-1973.82,0.00025273,120]
[344018226,1733207729569,-1635.5,0.00025273,120]
[344018227,1733207729624,-1062.05,0.00025273,120]
[344018228,1733207729690,-500.0,0.00025273,120]
[344018229,1733207729742,-2018.19,0.00025273,120]
[344018230,1733207729788,-2779.67,0.00025273,120]
[344018231,1733207729834,-500.0,0.00025273,120]
[344018232,1733207729881,-2067.76,0.00025273,120]
[344018233,1733207729929,-6602.75,0.00025273,120]
[344018234,1733207729975,-500.0,0.00025273,120]
[344018235,1733207730021,-632.01,0.00025273,120]
[344018236,1733207730067,-2591.2,0.00025273,120]
[344018237,1733207730114,-500.0,0.00025273,120]
[344018238,1733207730161,-500.0,0.00025273,120]
[344018239,1733207730208,-2456.1,0.00025273,120]
[344018240,1733207730254,-550.78,0.00025273,120]
[344018241,1733207730298,-500.0,0.00025273,120]
[344018242,1733207730342,-883.17,0.00025273,120]
[344018243,1733207730384,-1947.38,0.00025273,120]
[344018244,1733207730428,-500.0,0.00025273,120]
[344018245,1733207730470,-537.80764116,0.00025273,120]
[344018246,1733207730513,-500.0,0.00025273,120]
[344018247,1733207730558,-4221.45,0.00025273,120]
[344018248,1733207730601,-500.0,0.00025273,120]
[344018249,1733207730649,-1187.17,0.00025273,120]
[344018250,1733207730693,-1077.93,0.00025273,120]
[344018251,1733207730736,-2015.07,0.00025273,120]
[344018252,1733207730778,-500.0,0.00025273,120]
[344018253,1733207730822,-1643.61,0.00025273,120]
[344018254,1733207730865,-681.68,0.00025273,120]
[344018255,1733207730909,-500.0,0.00025273,120]
[344018256,1733207730952,-1105.21,0.00025273,120]
[344018257,1733207730997,-1830.08,0.00025273,120]
[344018258,1733207731042,-500.0,0.00025273,120]
[344018259,1733207731089,-645.19,0.00025273,120]
[344018260,1733207731133,-500.0,0.00025273,120]
[344018261,1733207731178,-500.0,0.00025273,120]
[344018262,1733207731221,-1133.3,0.00025273,120]
[344018263,1733207731266,-1162.67,0.00025273,120]
[344018264,1733207731311,-962.44,0.00025273,120]
[344018265,1733207731355,-2528.32,0.00025273,120]
[344018266,1733207731398,-767.12,0.00025273,120]
[344018267,1733207731440,-588.15,0.00025273,120]
[344018268,1733207731484,-2725.17,0.00025273,120]
[344018269,1733207731527,-500.0,0.00025273,120]
[344018270,1733207731569,-568.95,0.00025273,120]
[344018271,1733207731616,-1406.47,0.00025273,120]
[344018272,1733207731662,-500.0,0.00025273,120]
[344018273,1733207731703,-500.0,0.00025273,120]
[344018274,1733207731744,-6382.46,0.00025273,120]
[344018275,1733207731786,-500.0,0.00025273,120]
[344018276,1733207731830,-955.31,0.00025273,120]
[344018277,1733207731870,-500.0,0.00025273,120]
[344018278,1733207731911,-887.92,0.00025273,120]
[344018279,1733207731953,-500.0,0.00025273,120]
[344018280,1733207731996,-568.1,0.00025273,120]
[344018281,1733207732040,-500.0,0.00025273,120]
[344018282,1733207732087,-500.0,0.00025273,120]
[344018283,1733207732130,-500.0,0.00025273,120]
[344018284,1733207732173,-1049.14,0.00025273,120]
[344018285,1733207732217,-2080.12,0.00025273,120]
[344018286,1733207732543,-1303.05,0.00025273,120]
[344018287,1733207732594,-2626.2,0.00025273,120]
[344018288,1733207732636,-771.01,0.00025273,120]
[344018289,1733207732677,-4094.49,0.00025273,120]
[344018290,1733207732719,-1990.25,0.00025273,120]
[344018291,1733207732767,-500.0,0.00025273,120]
[344018292,1733207732812,-2247.2,0.00025273,120]
[344018293,1733207732854,-9047.66,0.00025273,120]
[344018294,1733207732896,-529.95,0.00025273,120]
[344018295,1733207732938,-4711.51,0.00025273,120]
[344018296,1733207732980,-500.0,0.00025273,120]
[344018297,1733207733025,-500.0,0.00025273,120]
[344018298,1733207733073,-500.0,0.00025273,120]
[344018299,1733207733119,-727.37,0.00025273,120]
[344018300,1733207733164,-500.0,0.00025273,120]
[344018301,1733207733210,-3620.79,0.00025273,120]
[344018302,1733207733255,-500.0,0.00025273,120]
[344018303,1733207733299,-2437.49,0.00025273,120]
[344018304,1733207733351,-500.0,0.00025273,120]
[344018305,1733207733394,-4508.52,0.00025273,120]
[344018306,1733207733439,-500.0,0.00025273,120]
[344018307,1733207733484,-24732.35,0.00025273,120]
[344018308,1733207733533,-2741.58,0.00025273,120]
[344018309,1733207733577,-575.2,0.00025273,120]
[344018310,1733207733626,-500.0,0.00025273,120]
[344018311,1733207733674,-331.95426187,0.00025273,120]
[344018312,1733207733719,-627.87,0.00025273,120]
[344018313,1733207733764,-4195.44,0.00025273,120]
[344018314,1733207733811,-1092.7,0.00025273,120]
[344018315,1733207733855,-500.0,0.00025273,120]
[344018316,1733207733902,-501.34846278,0.00025273,120]
[344018317,1733207733945,-649.98,0.00025273,120]
[344018318,1733207733991,-219.86420487,0.00025273,120]
[344018319,1733207734038,-500.0,0.00025273,120]
[344018320,1733207734085,-1747.3,0.00025273,120]
[344018321,1733207734129,-500.0,0.00025273,120]
[344018322,1733207734173,-1425.17,0.00025273,120]
[344018323,1733207734218,-2402.56,0.00025273,120]
[344018324,1733207734261,-1286.25,0.00025273,120]
[344018325,1733207734307,-2043.66,0.00025273,120]
[344018326,1733207734352,-6439.72,0.00025273,120]
[344018327,1733207734399,-500.0,0.00025273,120]
[344018328,1733207734442,-500.0,0.00025273,120]
[344018329,1733207734488,-3000.76,0.00025273,120]
[344018330,1733207734532,-4388.32,0.00025273,120]
[344018331,1733207734575,-1086.7,0.00025273,120]
[344018332,1733207734617,-500.0,0.00025273,120]
[344018333,1733207734657,-500.0,0.00025273,120]
[344018334,1733207734700,-500.0,0.00025273,120]
[344018335,1733207734741,-822.01,0.00025273,120]
[344018336,1733207734783,-721.99,0.00025273,120]
[344018337,1733207734828,-1721.19,0.00025273,120]
[344018338,1733207734868,-500.0,0.00025273,120]
[344018339,1733207734908,-618.36,0.00025273,120]
[344018340,1733207734950,-1086.23,0.00025273,120]
[344018341,1733207734990,-500.0,0.00025273,120]
[344018342,1733207735032,-500.0,0.00025273,120]
[344018343,1733207735073,-2498.27,0.00025273,120]
[344018344,1733207735114,-8666.15,0.00025273,120]
[344018345,1733207735155,-500.0,0.00025273,120]
[344018346,1733207735197,-500.0,0.00025273,30]
[344018347,1733207735239,-1066.17,0.00025273,120]
[344018348,1733207735281,-614.7,0.00025273,120]
[344018349,1733207735323,-7393.34,0.00025273,120]
[344018350,1733207735365,-500.0,0.00025273,120]
[344018351,1733207735407,-620.08,0.00025273,120]
[344018352,1733207735448,-2383.95,0.00025273,120]
[344018353,1733207735489,-500.0,0.00025273,120]
[344018354,1733207735530,-500.0,0.00025273,120]
[344018355,1733207735572,-925.98,0.00025273,120]
[344018356,1733207735614,-500.0,0.00025273,120]
[344018357,1733207735658,-1067.52,0.00025273,120]
[344018358,1733207735701,-502.16,0.00025273,120]
[344018359,1733207735742,-500.0,0.00025273,120]
[344018360,1733207735782,-768.58,0.00025273,120]
[344018361,1733207735823,-2665.2,0.00025273,120]
[344018362,1733207735860,-500.0,0.00025273,120]
[344018363,1733207735897,-1474.61,0.00025273,120]
[344018364,1733207735934,-3074.37,0.00025273,120]
[344018365,1733207735974,-500.0,0.00025273,120]
[344018366,1733207736018,-504.52286054,0.00025273,120]
[344018367,1733207736068,-4726.82,0.00025273,120]
[344018368,1733207736111,-2780.33,0.00025273,120]
[344018369,1733207736155,-500.0,0.00025273,120]
[344018370,1733207736199,-2325.77,0.00025273,120]
[344018371,1733207736246,-1341.98,0.00025273,120]
[344018372,1733207736294,-500.0,0.00025273,120]
[344018373,1733207736341,-2083.41,0.00025273,120]
[344018374,1733207736383,-2854.83,0.00025273,120]
[344018375,1733207736423,-500.0,0.00025273,120]
[344018376,1733207736464,-500.0,0.00025273,120]
[344018377,1733207736504,-1610.77,0.00025273,120]
[344018378,1733207736544,-5462.24,0.00025273,120]
[344018379,1733207736585,-695.97,0.00025273,120]
[344018380,1733207736924,-500.0,0.00025273,120]
[344018381,1733207736967,-1083.69,0.00025273,120]
[344018382,1733207737009,-500.0,0.00025273,120]
[344018383,1733207737053,-500.0,0.00025273,120]
[344018384,1733207737100,-2439.26,0.00025273,120]
[344018385,1733207737144,-1569.86,0.00025273,120]
[344018386,1733207737186,-500.0,0.00025273,120]
[344018387,1733207737229,-3352.75,0.00025273,120]
[344018388,1733207737272,-500.0,0.00025273,120]
[344018389,1733207737319,-500.0,0.00025273,120]
[344018390,1733207737361,-500.0,0.00025273,120]
[344018391,1733207737403,-546.42,0.00025273,120]
[344018392,1733207737444,-4452.73,0.00025273,120]
[344018393,1733207737487,-4220.61,0.00025273,120]
[344018394,1733207737529,-1087.29,0.00025273,120]
[344018395,1733207737571,-1070.56,0.00025273,120]
[344018396,1733207737614,-699.35,0.00025273,120]
[344018397,1733207737659,-500.0,0.00025273,120]
[344018398,1733207737701,-500.0,0.00025273,120]
[344018399,1733207737742,-574.63,0.00025273,120]
[344018400,1733207737784,-3050.22,0.00025273,120]
[344018401,1733207737826,-500.0,0.00025273,120]
[344018402,1733207737868,-710.38,0.00025273,120]
[344018403,1733207737908,-500.0,0.00025273,120]
[344018404,1733207737953,-500.0,0.00025273,120]
[344018405,1733207737997,-500.0,0.00025273,120]
[344018406,1733207738045,-10665.16,0.00025273,120]
[344018407,1733207738096,-500.0,0.00025273,120]
[344018408,1733207738144,-2587.35,0.00025273,120]
[344018409,1733207738191,-2124.01,0.00025273,120]
[344018410,1733207738236,-1069.79,0.00025273,120]
[344018411,1733207738277,-3838.3,0.00025273,120]
[344018412,1733207738319,-500.0,0.00025273,120]
[344018413,1733207738360,-1147.6,0.00025273,120]
[344018414,1733207738401,-500.0,0.00025273,120]
[344018415,1733207738447,-2125.97,0.00025273,120]
[344018416,1733207738490,-2739.36,0.00025273,120]
[344018417,1733207738534,-1230.07,0.00025273,120]
[344018418,1733207738575,-628.56,0.00025273,120]
[344018419,1733207738620,-500.0,0.00025273,120]
[344018420,1733207738662,-11437.99,0.00025273,120]
[344018421,1733207738702,-1469.55,0.00025273,120]
[344018422,1733207738742,-507.01,0.00025273,120]
[344018423,1733207738785,-500.0,0.00025273,120]
[344018424,1733207738825,-15969.07,0.00025273,120]
[344018425,1733207738867,-500.0,0.00025273,120]
[344018426,1733207738909,-500.0,0.00025273,120]
[344018427,1733207738950,-1757.08,0.00025273,120]
[344018428,1733207738994,-610.44,0.00025273,120]
[344018429,1733207739037,-500.0,0.00025273,120]
[344018430,1733207739080,-501.20298469,0.00025273,120]
[344018431,1733207739124,-500.0,0.00025273,120]
[344018432,1733207739166,-500.0,0.00025273,120]
[344018433,1733207739208,-3691.23,0.00025273,120]
[344018434,1733207739252,-3475.03,0.00025273,120]
[344018435,1733207739295,-1743.92,0.00025273,120]
[344018436,1733207739341,-500.0,0.00025273,120]
[344018437,1733207739384,-610.78,0.00025273,120]
[344018438,1733207739428,-500.0,0.00025273,120]
[344018439,1733207739469,-2039.81,0.00025273,120]
[344018440,1733207739513,-2180.21,0.00025273,120]
[344018441,1733207739556,-772.87,0.00025273,120]
[344018442,1733207739614,-2457.98,0.00025273,120]
[344018443,1733207739666,-5990.67,0.00025273,120]
[344018444,1733207739707,-500.0,0.00025273,120]
[344018445,1733207739751,-500.0,0.00025273,120]
[344018446,1733207739793,-503.78975239,0.00025273,120]
[344018447,1733207739838,-500.0,0.00025273,120]
[344018448,1733207739881,-500.0,0.00025273,120]
[344018449,1733207739925,-500.0,0.00025273,120]
[344018450,1733207739969,-944.85,0.00025273,120]
[344018451,1733207740013,-773.53,0.00025273,120]
[344018452,1733207740057,-1412.27,0.00025273,120]
[344018453,1733207740105,-19875.26,0.00025273,120]
[344018454,1733207740149,-500.0,0.00025273,30]
[344018455,1733207740192,-500.0,0.00025273,120]
[344018456,1733207740235,-676.76,0.00025273,120]
[344018457,1733207740277,-333.16653142,0.00025273,120]
[344018458,1733207740320,-500.0,0.00025273,120]
[344018459,1733207740362,-514.25492398,0.00025273,120]
[344018460,1733207740405,-500.0,0.00025273,120]
[344018461,1733207740448,-4144.29,0.00025273,120]
[344018462,1733207740491,-511.79,0.00025273,120]
[344018463,1733207740534,-1101.71,0.00025273,120]
[344018464,1733207740577,-2158.79,0.00025273,120]
[344018465,1733207740619,-500.0,0.00025273,120]
[344018466,1733207740664,-500.0,0.00025273,120]
[344018467,1733207740705,-500.0,0.00025273,120]
[344018468,1733207740748,-1357.79,0.00025273,120]
[344018469,1733207740789,-500.0,0.00025273,120]
[344018470,1733207740831,-500.0,0.00025273,120]
[344018471,1733207740873,-2196.29,0.00025273,120]
[344018472,1733207740913,-500.0,0.00025273,120]
[344018473,1733207740955,-2829.25,0.00025273,120]
[344018474,1733207741000,-6775.59,0.00025273,120]
[344018475,1733207741324,-512.37,0.00025273,120]
[344018476,1733207741369,-2164.53,0.00025273,120]
[344018477,1733207741411,-500.0,0.00025273,120]
[344018478,1733207741454,-619.82,0.00025273,120]
[344018479,1733207741497,-1614.91,0.00025273,120]
[344018480,1733207741542,-1073.53,0.00025273,120]
[344018481,1733207741585,-2694.52,0.00025273,120]
[344018482,1733207741628,-500.0,0.00025273,120]
[344018483,1733207741670,-1364.41,0.00025273,120]
[344018484,1733207741716,-656.24,0.00025273,120]
[344018485,1733207741759,-500.0,0.00025273,120]
[344018486,1733207741800,-500.0,0.00025273,120]
[344018487,1733207741843,-1032.33,0.00025273,120]
[344018488,1733207741885,-2338.87,0.00025273,120]
[344018489,1733207741930,-335.41,0.000254,31]
[344018490,1733207741976,-335.41,0.000254,31]
[344018491,1733207742022,-335.41,0.000254,31]
[344018492,1733207742075,-335.41,0.000254,31]
[344018493,1733207742122,-335.41,0.000254,31]
[344018494,1733207742169,-335.41,0.000254,31]
[344018495,1733207742216,-335.41,0.000254,31]
[344018496,1733207742263,-335.41,0.000254,31]
[344018497,1733207742309,-335.41,0.000254,31]
[344018498,1733207742359,-335.41,0.000254,31]
[344018499,1733207742405,-335.41,0.000254,31]
[344018500,1733207742451,-335.41,0.000254,31]
[344018501,1733207742498,-335.41,0.000254,31]
[344018502,1733207742544,-335.41,0.000254,31]
[344018503,1733207742592,-335.41,0.000254,31]